bitfinex/quotes_BTCUSD_20250206
["timestamp","ask_amount","ask_price","bid_price","bid_amount"]
[1738838800530,0.0001067,98979.0,98978.0,0.17957781]
[1738838800881,0.0061067,98979.0,98978.0,0.18057781]
[1738838801695,0.0061067,98979.0,98978.0,0.1905578]
[1738838802114,0.0001067,98979.0,98978.0,0.1895578]
[1738838802519,0.0051067,98979.0,98978.0,0.1905578]
[1738838802724,0.10761035,98979.0,98978.0,0.15757781]
[1738838803123,0.11161035,98979.0,98978.0,0.15757781]
[1738838803476,0.10261035,98979.0,98978.0,0.15657781]
[1738838803789,0.10561035,98979.0,98978.0,0.15657781]
[1738838804307,0.09565035,98979.0,98978.0,0.15657781]
[1738838805165,0.11451183,98979.0,98978.0,0.15657781]
[1738838805904,0.02186148,98979.0,98978.0,0.17957781]
[1738838807016,0.01886148,98979.0,98978.0,0.17957781]
[1738838807453,0.02086148,98979.0,98978.0,0.17957781]
[1738838808718,0.01886148,98979.0,98978.0,0.17957781]
[1738838809122,0.02086148,98979.0,98978.0,0.17957781]
[1738838809323,0.01886148,98979.0,98978.0,0.17957781]
[1738838809500,0.02086148,98979.0,98978.0,0.17957781]
[1738838812915,0.10286148,98979.0,98978.0,0.17957781]
[1738838813120,0.20536513,98979.0,98978.0,0.00502981]
[1738838813323,0.32053195,98979.0,98978.0,0.00502981]
[1738838813530,0.30536513,98979.0,98978.0,0.00502981]
[1738838813679,0.30536513,98979.0,98978.0,0.00012753]
[1738838814503,0.45691213,98979.0,98978.0,0.00012753]
[1738838814781,0.33559975,98979.0,98978.0,0.00012753]
[1738838814889,0.33359975,98979.0,98978.0,0.00012753]
[1738838815092,0.4265912,98979.0,98978.0,0.00012753]
[1738838815303,0.4335912,98979.0,98978.0,0.00112753]
[1738838815502,0.4335912,98979.0,98978.0,0.0013516]
[1738838815731,0.4336979,98979.0,98978.0,0.0013516]
[1738838815966,0.38610645,98979.0,98978.0,0.0013516]
[1738838816164,0.83207551,98979.0,98978.0,0.0013516]
[1738838816676,0.86356698,98979.0,98978.0,0.0013516]
[1738838817273,0.1,98968.0,98955.0,0.151583]
[1738838817477,0.15422491,98956.0,98955.0,0.15172148]
[1738838817729,2.29102918,98956.0,98955.0,0.15172148]
[1738838818701,2.34012528,98956.0,98955.0,0.15172148]
[1738838818903,2.34012528,98956.0,98955.0,0.00013848]
[1738838818904,2.77622893,98956.0,98955.0,0.00013848]
[1738838819099,2.66372528,98956.0,98955.0,0.00013848]
[1738838819524,2.69522017,98956.0,98955.0,0.00013848]
[1738838819733,2.66272528,98956.0,98955.0,0.00013848]
[1738838820193,2.67272528,98956.0,98955.0,0.00013848]
[1738838821020,2.83130728,98956.0,98955.0,0.00013848]
[1738838821367,3.40425826,98956.0,98955.0,0.00013848]
[1738838821777,3.41125826,98956.0,98955.0,0.00013848]
[1738838821984,3.41325826,98956.0,98955.0,0.00013848]
[1738838823138,0.224,98929.0,98928.0,0.08114125]
[1738838823292,2.51502918,98929.0,98928.0,0.08127983]
[1738838823510,2.51502918,98929.0,98928.0,0.00524606]
[1738838823711,2.54278761,98929.0,98928.0,0.00013858]
[1738838824093,2.51502918,98929.0,98928.0,0.00013858]
[1738838824306,2.51802918,98929.0,98928.0,0.00013858]
[1738838825336,2.53689066,98929.0,98928.0,0.00013858]
[1738838825745,2.54589066,98929.0,98928.0,0.00013858]
[1738838827210,2.70751366,98929.0,98928.0,0.00013858]
[1738838827417,2.81001731,98929.0,98928.0,0.00013858]
[1738838827856,2.65839431,98929.0,98928.0,0.00013858]
[1738838828076,2.81001731,98929.0,98928.0,0.00013858]
[1738838828235,2.54589066,98929.0,98928.0,0.00036265]
[1738838828443,2.54589066,98929.0,98928.0,0.15198765]
[1738838828793,2.83185972,98929.0,98928.0,0.00036265]
[1738838829769,2.83185972,98929.0,98928.0,0.15198765]
[1738838829980,2.82885972,98929.0,98928.0,0.15198765]
[1738838830177,2.83185972,98929.0,98928.0,0.15719142]
[1738838830379,2.82285972,98929.0,98928.0,0.15719142]
[1738838830915,2.82885972,98929.0,98928.0,0.15719142]
[1738838831190,2.83285972,98929.0,98928.0,0.15719142]
[1738838831368,2.83285972,98929.0,98928.0,0.00556642]
[1738838831575,2.93136337,98929.0,98928.0,0.00036265]
[1738838831924,2.93436337,98929.0,98928.0,0.00036265]
[1738838832106,2.92536337,98929.0,98928.0,0.00036265]
[1738838832328,2.94436337,98929.0,98928.0,0.00036265]
[1738838832534,2.73185972,98929.0,98928.0,0.00036265]
[1738838832764,2.83185972,98929.0,98928.0,0.00036265]
[1738838833255,2.82885972,98929.0,98928.0,0.15198765]
[1738838833463,2.83285972,98929.0,98928.0,0.15198765]
[1738838833681,2.82385972,98929.0,98928.0,0.15198765]
[1738838833897,2.22038701,98929.0,98928.0,0.15198765]
[1738838834058,1.20346209,98929.0,98928.0,0.17498765]
[1738838834262,2.21038701,98929.0,98928.0,0.18018711]
[1738838834469,2.30302918,98929.0,98928.0,0.16191089]
[1738838834670,2.40553283,98929.0,98928.0,0.15198765]
[1738838834879,2.39353283,98929.0,98928.0,0.15198765]
[1738838835122,2.39653283,98929.0,98928.0,0.15198765]
[1738838835323,2.30302918,98929.0,98928.0,0.15198765]
[1738838835447,2.29402918,98929.0,98928.0,0.15198765]
[1738838836285,2.29102918,98929.0,98928.0,0.15198765]
[1738838836693,2.29402918,98929.0,98928.0,0.15198765]
[1738838836908,2.32082086,98929.0,98928.0,0.15198765]
[1738838837086,2.30982086,98929.0,98928.0,0.15198765]
[1738838837492,2.31982086,98929.0,98928.0,0.15198765]
[1738838837693,2.31282086,98929.0,98928.0,0.15198765]
[1738838838001,2.31682086,98929.0,98928.0,0.15198765]
[1738838838326,2.31982086,98929.0,98928.0,0.15198765]
[1738838839509,2.31682086,98929.0,98928.0,0.15198765]
[1738838839704,2.31982086,98929.0,98928.0,0.15198765]
[1738838840071,2.31282086,98929.0,98928.0,0.15198765]
[1738838840275,2.31982086,98929.0,98928.0,0.15198765]
[1738838840479,2.30982086,98929.0,98928.0,0.15198765]
[1738838840684,2.31282086,98929.0,98928.0,0.15198765]
[1738838840884,2.31882086,98929.0,98928.0,0.15198765]
[1738838841095,2.31582086,98929.0,98928.0,0.15198765]
[1738838841415,2.32282086,98929.0,98928.0,0.15198765]
[1738838841611,2.31182086,98929.0,98928.0,0.15198765]
[1738838842640,2.30982086,98929.0,98928.0,0.15198765]
[1738838843074,2.31682086,98929.0,98928.0,0.15198765]
[1738838843482,2.31482086,98929.0,98928.0,0.15198765]
[1738838843688,2.31982086,98929.0,98928.0,0.15198765]
[1738838843865,2.31182086,98929.0,98928.0,0.15198765]
[1738838844271,2.31482086,98929.0,98928.0,0.15198765]
[1738838844571,2.31682086,98929.0,98928.0,0.15198765]
[1738838844974,2.32182086,98929.0,98928.0,0.15198765]
[1738838845764,2.31982086,98929.0,98928.0,0.15198765]
[1738838846166,2.31182086,98929.0,98928.0,0.15198765]
[1738838846620,2.29802918,98929.0,98928.0,0.17498765]
[1738838847029,2.29802918,98929.0,98928.0,0.15198765]
[1738838847237,2.29102918,98929.0,98928.0,0.15198765]
[1738838847437,2.39353283,98929.0,98928.0,0.15198765]
[1738838847658,2.40053283,98929.0,98928.0,0.15198765]
[1738838847863,2.29802918,98929.0,98928.0,0.15198765]
[1738838848276,2.30302918,98929.0,98928.0,0.15198765]
[1738838849029,2.30102918,98929.0,98928.0,0.15198765]
[1738838849308,2.32195707,98929.0,98928.0,0.15198765]
[1738838849529,2.31195707,98929.0,98928.0,0.15198765]
[1738838849752,2.31695707,98929.0,98928.0,0.15198765]
[1738838850170,2.31195707,98929.0,98928.0,0.15198765]
[1738838850498,2.31495707,98929.0,98928.0,0.15198765]
[1738838850858,2.31695707,98929.0,98928.0,0.15198765]
[1738838851074,2.32195707,98929.0,98928.0,0.15198765]
[1738838852160,2.31995707,98929.0,98928.0,0.15198765]
[1738838852363,2.30102918,98929.0,98928.0,0.15198765]
[1738838852566,2.30302918,98929.0,98928.0,0.15198765]
[1738838852934,2.30102918,98929.0,98928.0,0.15198765]
[1738838853322,2.30302918,98929.0,98928.0,0.15198765]
[1738838853618,0.26872856,98929.0,98928.0,0.15198765]
[1738838854157,0.26872856,98929.0,98928.0,0.15731216]
[1738838866495,0.29560142,98929.0,98928.0,0.15731216]
[1738838866674,0.26872856,98929.0,98928.0,0.15731216]
[1738838867328,0.25872856,98929.0,98928.0,0.15731216]
[1738838867772,0.26172856,98929.0,98928.0,0.15731216]
[1738838867987,0.26372856,98929.0,98928.0,0.15731216]
[1738838876924,0.26372856,98929.0,98928.0,0.00568716]
[1738838877062,0.26372856,98929.0,98928.0,0.00036265]
[1738838877484,0.26372856,98929.0,98928.0,0.00568212]
[1738838877820,0.26372856,98929.0,98928.0,0.15730712]
[1738838880051,0.16122491,98929.0,98928.0,0.18030712]
[1738838880853,0.15922491,98929.0,98928.0,0.33030712]
[1738838881345,0.16122491,98929.0,98928.0,0.33030712]
[1738838881704,0.15922491,98929.0,98928.0,0.33030712]
[1738838881923,0.15422491,98929.0,98928.0,0.33030712]
[1738838882246,0.15822491,98929.0,98928.0,0.35076728]
[1738838882480,0.16022491,98929.0,98928.0,0.35076728]
[1738838882636,0.15622491,98929.0,98928.0,0.35076728]
[1738838882848,0.16022491,98929.0,98928.0,0.35076728]
[1738838889884,0.14000791,98929.0,98928.0,0.35076728]
[1738838890075,0.28596906,98954.0,98953.0,0.151587]
[1738838890441,2.25059518,98954.0,98953.0,0.151587]
[1738838891753,2.14809153,98954.0,98953.0,0.174587]
[1738838891967,2.15009153,98954.0,98953.0,0.1798815]
[1738838892187,1.13716661,98954.0,98953.0,0.1798815]
[1738838892604,1.14316661,98954.0,98953.0,0.175587]
[1738838892805,1.14316661,98954.0,98953.0,0.18566319]
[1738838893237,1.24567026,98954.0,98953.0,0.16266319]
[1738838894471,1.14316661,98954.0,98953.0,0.18566319]
[1738838899366,1.24567026,98954.0,98953.0,0.16266319]
[1738838899566,1.32377026,98954.0,98953.0,0.16266319]
[1738838905152,1.37207026,98954.0,98953.0,0.001]
[1738838905365,1.47207026,98954.0,98953.0,0.001]
[1738838905703,1.63365526,98954.0,98953.0,0.001]
[1738838906531,1.63165526,98954.0,98953.0,0.001]
[1738838907091,1.48307026,98954.0,98953.0,0.001]
[1738838907318,1.70385876,98954.0,98953.0,0.001]
[1738838907525,1.70085876,98954.0,98953.0,0.001]
[1738838908711,1.98682782,98954.0,98953.0,0.001]
[1738838909120,0.3312,98944.0,98943.0,0.151602]
[1738838909326,2.46800427,98944.0,98943.0,0.151602]
[1738838910329,2.47100427,98944.0,98943.0,0.151602]
[1738838910586,2.47900427,98944.0,98943.0,0.151602]
[1738838914799,2.76497333,98944.0,98943.0,0.151602]
[1738838920075,2.66497333,98944.0,98943.0,0.151602]
[1738838920282,2.53377333,98944.0,98943.0,0.151602]
[1738838923352,2.53377333,98944.0,98943.0,0.15182607]
[1738838924045,2.58675307,98944.0,98943.0,0.15182607]
[1738838924224,2.53377333,98944.0,98943.0,0.15182607]
[1738838938027,2.43377333,98944.0,98943.0,0.15182607]
[1738838938480,2.14780427,98944.0,98943.0,0.15182607]
[1738838939489,1.13487935,98944.0,98943.0,0.15182607]
[1738838939685,0.11350365,98944.0,98943.0,0.15182607]
[1738838939890,0.11350365,98944.0,98943.0,0.15711132]
[1738838950790,0.11350365,98944.0,98943.0,0.20461132]
[1738838950993,0.011,98944.0,98943.0,0.22761132]
[1738838951192,1e-06,98944.0,98943.0,0.22761132]
[1738838951840,0.05326461,98954.0,98953.0,0.381387]
[1738838952076,1.01292492,98972.0,98968.0,0.174564]
[1738838952271,1.1116431,98969.0,98968.0,0.174564]
[1738838952479,1.1116431,98969.0,98968.0,0.17982996]
[1738838952480,1.0213757,98969.0,98968.0,0.17982996]
[1738838953365,1.0243757,98969.0,98968.0,0.17982996]
[1738838953561,1.02446484,98969.0,98968.0,0.17982996]
[1738838953739,1.02546484,98969.0,98968.0,0.17982996]
[1738838955209,0.0016067,98987.0,98969.0,0.173]
[1738838955452,1.0214824,98979.0,98978.0,0.174548]
[1738838955869,1.0214824,98979.0,98978.0,0.17979895]
[1738838956491,1.0244824,98979.0,98978.0,0.17979895]
[1738838956693,1.0244824,98979.0,98978.0,0.19971697]
[1738838956694,1.0214824,98979.0,98978.0,0.19971697]
[1738838957001,0.0001067,99008.0,99007.0,0.151504]
[1738838957146,1.0214824,99008.0,99007.0,0.174504]
[1738838957324,1.0214824,99008.0,99007.0,0.17973412]
[1738838958351,1.0214824,99008.0,99007.0,0.1798727]
[1738838959376,1.0224824,99008.0,99007.0,0.1798727]
[1738838959856,1.0214824,99008.0,99007.0,0.1798727]
[1738838961133,0.05035171,99011.0,99010.0,0.151499]
[1738838961490,0.0001067,99018.0,99011.0,0.023]
[1738838961690,1.0214824,99018.0,99017.0,0.174489]
[1738838962015,1.0214824,99018.0,99017.0,0.17980504]
[1738838962426,1.0214824,99018.0,99017.0,0.18258606]
[1738838963242,1.0214824,99018.0,99017.0,0.19464293]
[1738838963546,1.01292492,99025.0,99018.0,0.023]
[1738838963673,2.03430062,99025.0,99024.0,0.174478]
[1738838964295,2.03430062,99025.0,99024.0,0.17971214]
[1738838964724,0.151401,99075.0,99027.0,0.15]
[1738838964725,1.0213757,99028.0,99027.0,0.15]
[1738838964921,1.0213757,99030.0,99029.0,0.173]
[1738838965241,1.0213757,99030.0,99029.0,0.3310927]
[1738838965449,1.01303172,99053.0,99051.0,0.151437]
[1738838965667,1.01303172,99053.0,99052.0,0.023]
[1738838965668,2.03440742,99053.0,99052.0,0.023]
[1738838966086,2.03440742,99053.0,99052.0,0.02820429]
[1738838966489,2.13691107,99053.0,99052.0,0.02820429]
[1738838966714,2.13737469,99053.0,99052.0,0.00520429]
[1738838966918,2.14137469,99053.0,99051.0,0.151437]
[1738838967111,0.10250365,99052.0,99051.0,0.174437]
[1738838967568,0.10250365,99052.0,99051.0,0.18988386]
[1738838968853,0.10650365,99052.0,99051.0,0.18988386]
[1738838969709,0.10750365,99052.0,99051.0,0.18988386]
[1738838969857,0.10761035,99052.0,99051.0,0.16688386]
[1738838977523,0.10761035,99052.0,99051.0,0.18988386]
[1738838978864,0.0051067,99052.0,99051.0,0.18988386]
[1738838979416,0.10761035,99052.0,99051.0,0.16688386]
[1738838982309,0.10761035,99052.0,99051.0,0.16710772]
[1738838984410,0.10761035,99052.0,99051.0,0.15685678]
[1738838984744,0.10761035,99052.0,99051.0,0.15166086]
[1738838986046,0.10761035,99052.0,99051.0,0.15682314]
[1738838987327,0.10761035,99052.0,99051.0,0.17982314]
[1738838999945,0.13915148,99052.0,99051.0,0.17982314]
[1738839002899,0.13915148,99052.0,99051.0,0.15682314]
[1738839003123,0.21795148,99052.0,99051.0,0.15682314]
[1738839004611,0.21795148,99052.0,99051.0,0.00538614]
[1738839004795,0.1,99037.0,99017.0,0.0764]
[1738839005025,0.1,99037.0,99013.0,0.08114125]
[1738839005026,0.18340365,99036.0,99031.0,0.201955]
[1738839005266,0.1,99031.0,99021.0,0.201977]
[1738839005466,0.1,99031.0,99030.0,0.151469]
[1738839005668,0.1,99027.0,99023.0,0.151479]
[1738839005888,2.13430062,99027.0,99026.0,0.151475]
[1738839006331,2.23680427,99027.0,99026.0,0.151475]
[1738839006534,2.23680427,99027.0,99026.0,0.15614475]
[1738839006709,2.23680427,99027.0,99026.0,0.151475]
[1738839006938,2.13680427,99027.0,99026.0,0.151475]
[1738839008460,2.13780427,99027.0,99026.0,0.151475]
[1738839009441,2.13880427,99027.0,99026.0,0.151475]
[1738839010249,2.23880427,99027.0,99026.0,0.151475]
[1738839010613,2.23880427,99027.0,99026.0,0.174475]
[1738839011009,2.13880427,99027.0,99026.0,0.174475]
[1738839011623,2.13880427,99027.0,99021.0,0.00987795]
[1738839011804,0.10250365,99026.0,99021.0,0.00987795]
[1738839011970,0.10250365,99026.0,99025.0,0.151476]
[1738839012766,0.10250365,99026.0,99025.0,0.15615449]
[1738839012999,0.10250365,99026.0,99025.0,0.17915449]
[1738839013201,0.10350365,99026.0,99025.0,0.17915449]
[1738839013434,0.10250365,99026.0,99025.0,0.174476]
[1738839013609,0.10350365,99026.0,99025.0,0.174476]
[1738839013803,0.10450365,99026.0,99025.0,0.174476]
[1738839014198,0.10350365,99026.0,99025.0,0.174476]
[1738839014418,0.20350365,99026.0,99022.0,0.01021676]
[1738839014596,0.20450365,99026.0,99010.0,0.13776463]
[1738839014800,0.20450365,99026.0,99025.0,0.151476]
[1738839015004,0.20350365,99026.0,99025.0,0.151476]
[1738839015231,0.10350365,99026.0,99025.0,0.17917633]
[1738839015446,0.10450365,99026.0,99025.0,0.023]
[1738839015612,0.10450365,99026.0,99025.0,0.174476]
[1738839015978,0.10350365,99026.0,99025.0,0.17917633]
[1738839016118,0.10450365,99026.0,99025.0,0.18925998]
[1738839016675,0.10350365,99026.0,99025.0,0.18925998]
[1738839017014,0.10450365,99026.0,99025.0,0.18925998]
[1738839017619,0.10450365,99026.0,99025.0,0.18948384]
[1738839019578,0.002,99026.0,99025.0,0.18948384]
[1738839020353,0.001,99026.0,99025.0,0.18948384]
[1738839021322,2.03430062,99027.0,99026.0,0.023]
[1738839021541,1.12387935,99027.0,99026.0,0.023]
[1738839021751,1.12387935,99027.0,99026.0,0.02770214]
[1738839022255,1.12387935,99027.0,99026.0,0.023]
[1738839022798,1.12487935,99027.0,99026.0,0.023]
[1738839024492,1.12587935,99027.0,99026.0,0.023]
[1738839024886,1.12487935,99027.0,99026.0,0.023]
[1738839025071,1.12387935,99027.0,99026.0,0.023]
[1738839025305,1.12487935,99027.0,99026.0,0.023]
[1738839026065,1.12587935,99027.0,99026.0,0.023]
[1738839026976,1.12587935,99027.0,99026.0,0.174475]
[1738839028166,1.12487935,99027.0,99026.0,0.174475]
[1738839028372,1.12587935,99027.0,99026.0,0.174475]
[1738839028736,1.12487935,99027.0,99026.0,0.174475]
[1738839029150,1.12587935,99027.0,99026.0,0.174475]
[1738839029350,1.12487935,99027.0,99026.0,0.174475]
[1738839029554,1.12387935,99027.0,99026.0,0.174475]
[1738839029943,1.12487935,99027.0,99026.0,0.174475]
[1738839030148,1.12498605,99027.0,99026.0,0.174475]
[1738839031013,1.12598605,99027.0,99026.0,0.174475]
[1738839031240,1.12398605,99027.0,99026.0,0.174475]
[1738839031671,1.12498605,99027.0,99026.0,0.174475]
[1738839032296,1.1182049,99027.0,99026.0,0.175475]
[1738839032523,0.00698174,99057.0,99052.0,0.173]
[1738839032730,0.1,99087.0,99051.0,0.154]
[1738839032731,1.0213757,99094.0,99058.0,0.173]
[1738839032941,0.00098839,99080.0,99077.0,0.174397]
[1738839033152,0.00098839,99080.0,99077.0,0.17540614]
[1738839033355,0.00098839,99080.0,99077.0,0.17805128]
[1738839033973,1.0213757,99094.0,99077.0,0.17818986]
[1738839034231,1.0213757,99094.0,99077.0,0.18807632]
[1738839034411,0.0158712,99078.0,99077.0,0.18807632]
[1738839035175,0.0158712,99078.0,99077.0,0.18907632]
[1738839035568,0.11837485,99078.0,99077.0,0.02779286]
[1738839035779,0.11837485,99078.0,99077.0,0.02413858]
[1738839035987,0.11837485,99078.0,99077.0,0.02313858]
[1738839036387,1.01292492,99099.0,99077.0,0.02313858]
[1738839036388,0.1,99115.0,99107.0,0.151351]
[1738839036590,0.01,99120.0,99100.0,0.0891]
[1738839036591,7e-05,99131.0,99126.0,0.174322]
[1738839036808,7e-05,99131.0,99130.0,0.174316]
[1738839037143,7e-05,99131.0,99130.0,0.16623433]
[1738839037548,1.0214457,99131.0,99130.0,0.16623433]
[1738839037778,1.12394935,99131.0,99130.0,0.00365691]
[1738839038034,1.13850937,99131.0,99130.0,0.00365691]
[1738839038273,1.22394935,99131.0,99130.0,0.00013858]
[1738839038584,1.22594935,99131.0,99130.0,0.00013858]
[1738839039007,1.22394935,99131.0,99130.0,0.00013858]
[1738839039205,1.23394935,99131.0,99130.0,0.00113858]
[1738839039480,1.13394935,99131.0,99130.0,0.00113858]
[1738839039680,1.12594935,99131.0,99130.0,0.00013858]
[1738839040696,1.41094935,99131.0,99130.0,0.00013858]
[1738839041092,1.41894935,99131.0,99130.0,0.00113858]
[1738839041306,1.40894935,99131.0,99130.0,0.00013858]
[1738839041661,1.41894935,99131.0,99130.0,0.00113858]
[1738839041873,1.41094935,99131.0,99130.0,0.00013858]
[1738839042070,1.511453,99131.0,99130.0,0.00013858]
[1738839042273,1.41694935,99131.0,99130.0,0.00113858]
[1738839042459,1.57026335,99131.0,99130.0,0.00013858]
[1738839042661,1.57036995,99131.0,99130.0,0.00013858]
[1738839042854,1.57736995,99131.0,99130.0,0.00113858]
[1738839043096,1.42605595,99131.0,99130.0,0.00113858]
[1738839043289,1.41805595,99131.0,99130.0,0.00113858]
[1738839043690,1.42805595,99131.0,99130.0,0.00113858]
[1738839044621,1.40905595,99131.0,99130.0,0.00013858]
[1738839044816,1.41105595,99131.0,99130.0,0.00113858]
[1738839045032,1.42005595,99131.0,99130.0,0.00113858]
[1738839045260,1.41005595,99131.0,99130.0,0.00113858]
[1738839045432,1.38505595,99131.0,99130.0,0.00113858]
[1738839046229,1.38305595,99131.0,99130.0,0.00113858]
[1738839046579,1.38505595,99131.0,99130.0,0.00113858]
[1738839046995,1.39505595,99131.0,99130.0,0.00113858]
[1738839047146,1.38605595,99131.0,99130.0,0.00013858]
[1738839047582,1.39505595,99131.0,99130.0,0.00113858]
[1738839047785,1.38405595,99131.0,99130.0,0.00013858]
[1738839048171,1.39505595,99131.0,99130.0,0.00113858]
[1738839049558,1.28505595,99131.0,99130.0,0.00113858]
[1738839049931,1.13505595,99131.0,99130.0,0.00113858]
[1738839050136,1.13505595,99131.0,99130.0,0.15245458]
[1738839050346,1.13505595,99131.0,99130.0,0.02413858]
[1738839050542,1.13505595,99131.0,99130.0,0.17895166]
[1738839050825,1.13505595,99131.0,99130.0,0.17545458]
[1738839051130,1.13505595,99131.0,99130.0,0.17895166]
[1738839051261,1.12405595,99131.0,99130.0,0.17795166]
[1738839051853,1.13505595,99131.0,99130.0,0.17895166]
[1738839052068,1.13305595,99131.0,99130.0,0.17795166]
[1738839052278,1.13705595,99131.0,99130.0,0.17795166]
[1738839052479,1.13905595,99131.0,99130.0,0.02663566]
[1738839052680,1.13905595,99131.0,99130.0,0.02313858]
[1738839052894,1.13905595,99131.0,99130.0,0.17445458]
[1738839053422,1.13905595,99131.0,99130.0,0.17793367]
[1738839054426,1.13905595,99131.0,99130.0,0.17815753]
[1738839054661,1.0365523,99131.0,99130.0,0.17815753]
[1738839057292,1.0365523,99131.0,99130.0,0.30645753]
[1738839057500,1.0365523,99131.0,99130.0,0.33765008]
[1738839057702,1.0365523,99131.0,99130.0,0.17815753]
[1738839058059,1.0215523,99131.0,99130.0,0.17815753]
[1738839058488,1.0275523,99131.0,99130.0,0.17815753]
[1738839058843,1.0255523,99131.0,99130.0,0.17815753]
[1738839060023,1.12905595,99131.0,99130.0,0.17815753]
[1738839060372,1.12505595,99131.0,99130.0,0.17467844]
[1738839060680,1.12605595,99131.0,99130.0,0.17815305]
[1738839060889,1.12505595,99131.0,99130.0,0.17815305]
[1738839061094,1.12605595,99131.0,99130.0,0.17815305]
[1738839062512,1.12605595,99131.0,99130.0,0.02683705]
[1738839062732,1.17207946,99131.0,99130.0,0.00036244]
[1738839062940,1.12605595,99131.0,99130.0,0.00036244]
[1738839063617,1.12505595,99131.0,99130.0,0.00036244]
[1738839063809,1.12605595,99131.0,99130.0,0.00036244]
[1738839064009,1.12505595,99131.0,99130.0,0.00036244]
[1738839064210,1.12505595,99131.0,99130.0,0.17467844]
[1738839064444,1.12605595,99131.0,99130.0,0.17815077]
[1738839065382,1.12605595,99131.0,99130.0,0.02683477]
[1738839065729,1.12605595,99131.0,99130.0,0.17467844]
[1738839065959,1.12605595,99131.0,99130.0,0.17815077]
[1738839067145,0.10468025,99131.0,99130.0,0.17815077]
[1738839069683,0.10468025,99131.0,99130.0,0.02683477]
[1738839069884,0.10468025,99131.0,99130.0,0.02336244]
[1738839070096,0.10468025,99131.0,99130.0,0.17467844]
[1738839070237,0.10468025,99131.0,99130.0,0.02683477]
[1738839071045,0.10468025,99131.0,99130.0,0.17815077]
[1738839071245,0.10468025,99131.0,99130.0,0.02683477]
[1738839072641,0.10468025,99131.0,99130.0,0.17815077]
[1738839079777,0.0021766,99131.0,99130.0,0.17815077]
[1738839080498,0.10468025,99131.0,99130.0,0.17815077]
[1738839081184,0.10368025,99131.0,99130.0,0.17815077]
[1738839081338,0.10468025,99131.0,99130.0,0.17815077]
[1738839081741,0.10368025,99131.0,99130.0,0.17815077]
[1738839081948,0.10468025,99131.0,99130.0,0.17815077]
[1738839082150,0.0021766,99131.0,99130.0,0.17815077]
[1738839082362,0.0011766,99131.0,99130.0,0.17815077]
[1738839082756,0.0021766,99131.0,99130.0,0.17815077]
[1738839083182,0.0011766,99131.0,99130.0,0.17815077]
[1738839083630,0.0001766,99131.0,99130.0,0.17815077]
[1738839083802,0.10268025,99131.0,99130.0,0.17815077]
[1738839084521,0.10368025,99131.0,99130.0,0.17815077]
[1738839084746,0.10268025,99131.0,99130.0,0.17815077]
[1738839085170,0.0031766,99131.0,99130.0,0.17815077]
[1738839085396,0.0011766,99131.0,99130.0,0.17815077]
[1738839085780,0.0001766,99131.0,99130.0,0.17815077]
[1738839086025,0.0011766,99131.0,99130.0,0.17815077]
[1738839086475,0.0001766,99131.0,99130.0,0.17915945]
[1738839086724,0.0021766,99131.0,99130.0,0.17915939]
[1738839086920,0.0001766,99131.0,99130.0,0.17915939]
[1738839087126,0.0001766,99131.0,99130.0,0.22505939]
[1738839087330,0.0001766,99131.0,99130.0,0.22405077]
[1738839087536,0.0021766,99131.0,99130.0,0.22405077]
[1738839087672,0.0001766,99131.0,99130.0,0.22405077]
[1738839088752,0.0001766,99131.0,99130.0,0.22705077]
[1738839089186,0.0001766,99131.0,99130.0,0.22805077]
[1738839089986,0.0001766,99131.0,99130.0,0.22505077]
[1738839090210,0.0001766,99131.0,99130.0,0.22905077]
[1738839091242,0.0001766,99131.0,99130.0,0.22805077]
[1738839091579,0.0001766,99131.0,99130.0,0.22505077]
[1738839091971,0.0001766,99131.0,99130.0,0.22905077]
[1738839093269,0.0001766,99131.0,99130.0,0.18315077]
[1738839093670,0.0001766,99131.0,99130.0,0.16015077]
[1738839094276,0.0001766,99131.0,99130.0,0.15515077]
[1738839094690,0.0001766,99131.0,99130.0,0.18215077]
[1738839095056,0.0001766,99131.0,99130.0,0.17815077]
[1738839095256,0.0001766,99131.0,99130.0,0.17915077]
[1738839096498,0.0001766,99131.0,99130.0,0.18215077]
[1738839097365,0.0001766,99131.0,99130.0,0.18315936]
[1738839097539,0.0001766,99131.0,99130.0,0.18215077]
[1738839099280,0.0001766,99131.0,99130.0,0.18115077]
[1738839099483,0.0001766,99131.0,99130.0,0.17815077]
[1738839101055,0.0089173,99137.0,99132.0,0.023]
[1738839101234,2.04321792,99137.0,99136.0,0.174307]
[1738839101613,2.04321792,99137.0,99136.0,0.17776868]
[1738839102178,2.04421792,99137.0,99136.0,0.17776868]
[1738839103067,2.04621792,99137.0,99136.0,0.17776868]
[1738839103459,2.04821792,99137.0,99136.0,0.17776868]
[1738839103683,2.04721792,99137.0,99136.0,0.17776868]
[1738839103878,2.04921792,99137.0,99136.0,0.17776868]
[1738839104182,2.04921792,99137.0,99136.0,0.18766872]
[1738839104355,2.04721792,99137.0,99136.0,0.18766872]
[1738839104702,2.04821792,99137.0,99136.0,0.18766872]
[1738839107360,2.04721792,99137.0,99136.0,0.18766872]
[1738839107798,2.04821792,99137.0,99136.0,0.18766872]
[1738839108201,2.04721792,99137.0,99136.0,0.18766872]
[1738839108473,2.15072157,99137.0,99131.0,0.01006556]
[1738839108680,0.10250365,99136.0,99133.0,0.151311]
[1738839109085,0.10250365,99136.0,99134.0,0.00345967]
[1738839109293,0.10250365,99136.0,99134.0,0.023]
[1738839109979,0.10250365,99136.0,99132.0,0.023]
[1738839110470,0.10450365,99136.0,99132.0,0.174312]
[1738839110872,0.10250365,99136.0,99132.0,0.023]
[1738839111438,0.10350365,99136.0,99132.0,0.023]
[1738839111658,0.351313,99132.0,99131.0,0.01028984]
[1738839111870,0.61609163,99132.0,99131.0,0.01028984]
[1738839113165,0.78609163,99132.0,99131.0,0.01028984]
[1738839113376,0.151353,99106.0,99087.0,7.087e-05]
[1738839113524,0.1,99098.0,99095.0,0.08128009]
[1738839113739,0.10250365,99097.0,99096.0,0.0034635]
[1738839114584,0.10250365,99097.0,99095.0,0.00013884]
[1738839114777,0.10250365,99097.0,99096.0,0.0034635]
[1738839116323,0.10250365,99097.0,99096.0,0.0044635]
[1738839116998,0.10250365,99097.0,99096.0,0.0034635]
[1738839117349,0.10550365,99097.0,99096.0,0.0034635]
[1738839118035,0.10450365,99097.0,99096.0,0.0264635]
[1738839118242,0.10550365,99097.0,99096.0,0.0264635]
[1738839118645,0.10350365,99097.0,99096.0,0.0264635]
[1738839119098,0.10550365,99097.0,99096.0,0.0264635]
[1738839119240,0.10350365,99097.0,99096.0,0.0264635]
[1738839119674,0.10350365,99097.0,99096.0,0.0274635]
[1738839120158,0.10250365,99097.0,99096.0,0.0274635]
[1738839121143,0.10250365,99097.0,99096.0,0.00439177]
[1738839121313,0.10250365,99097.0,99096.0,0.001]
[1738839121726,0.10350365,99097.0,99096.0,0.00339177]
[1738839122082,0.10550365,99097.0,99096.0,0.00339177]